[Event "Titled Tuesday Blitz January 03 Early 2023"]
[White "Aradhya, Garg"]
[Black "Murtazin, Ruslan"]
[WhiteFideId "25006746"]
[BlackFideId "24175960"]
[WhiteElo "2284"]
[BlackElo "2247"]
[Result "1-0"]
[Round "06"]
[TimeControl "180+2"]
[Date "2023.01.03"]
[WhiteClock "0:00:13"]
[BlackClock "0:00:02"]

1. d4 {[%clk 0:03:00]}  Nf6 {[%clk 0:02:59]} 2. c4 {[%clk 0:03:00]}  c5 {[%clk 0:02:59]} 3. d5 {[%clk 0:02:59]}  e6 {[%clk 0:03:00]} 4. Nf3 {[%clk 0:02:58]}  exd5 {[%clk 0:03:01]} 5. cxd5 {[%clk 0:02:57]}  d6 {[%clk 0:03:02]} 6. e4 {[%clk 0:02:57]}  g6 {[%clk 0:03:02]} 7. Bd3 {[%clk 0:02:57]}  a6 {[%clk 0:03:01]} 8. a4 {[%clk 0:02:48]}  Bg7 {[%clk 0:03:01]} 9. Na3 {[%clk 0:02:47]}  Bg4 {[%clk 0:02:59]} 10. O-O {[%clk 0:02:46]}  O-O {[%clk 0:02:58]} 11. Nc4 {[%clk 0:02:45]}  Ne8 {[%clk 0:02:53]} 12. a5 {[%clk 0:02:39]}  Nd7 {[%clk 0:02:46]} 13. Bf4 {[%clk 0:02:38]}  Qc7 {[%clk 0:02:39]} 14. Rc1 {[%clk 0:02:29]}  b5 {[%clk 0:02:34]} 15. axb6 {[%clk 0:02:26]}  Nxb6 {[%clk 0:02:33]} 16. b4 {[%clk 0:02:24]}  Nd7 {[%clk 0:02:24]} 17. h3 {[%clk 0:02:04]}  Bxf3 {[%clk 0:02:22]} 18. Qxf3 {[%clk 0:02:05]}  Rb8 {[%clk 0:02:18]} 19. Qg3 {[%clk 0:01:54]}  Rxb4 {[%clk 0:02:12]} 20. Nxd6 {[%clk 0:01:54]}  Qa7 {[%clk 0:02:05]} 21. Nc4 {[%clk 0:01:25]}  Nef6 {[%clk 0:01:57]} 22. Qf3 {[%clk 0:01:24]}  Re8 {[%clk 0:01:41]} 23. Rfe1 {[%clk 0:01:13]}  Nh5 {[%clk 0:01:18]} 24. Bd6 {[%clk 0:01:12]}  Bd4 {[%clk 0:01:16]} 25. e5 {[%clk 0:01:09]}  Ng7 {[%clk 0:00:55]} 26. e6 {[%clk 0:01:09]}  fxe6 {[%clk 0:00:54]} 27. dxe6 {[%clk 0:01:09]}  Nf6 {[%clk 0:00:24]} 28. Be5 {[%clk 0:00:53]}  Qe7 {[%clk 0:00:15]} 29. Na5 {[%clk 0:00:22]}  Bxe5 {[%clk 0:00:09]} 30. Rxe5 {[%clk 0:00:23]}  Ra4 {[%clk 0:00:03]} 31. Nc6 {[%clk 0:00:21]}  Qd6 {[%clk 0:00:03]} 32. Qxf6 {[%clk 0:00:21]}  Qxc6 {[%clk 0:00:03]} 33. Qf7+ {[%clk 0:00:16]}  Kh8 {[%clk 0:00:03]} 34. e7 {[%clk 0:00:16]}  Rd4 {[%clk 0:00:02]} 35. Qf8+ {[%clk 0:00:13]} 1-0


[Site "https://www.chess.com"]

[Event "Titled Tuesday Blitz January 03 Early 2023"]
[White "Vaibhav, Suri"]
[Black "Parpiev, Isaak"]
[WhiteFideId "5045185"]
[BlackFideId "34281576"]
[WhiteElo "2595"]
[BlackElo "2167"]
[Result "1-0"]
[Round "06"]
[TimeControl "180+2"]
[Date "2023.01.03"]
[WhiteClock "0:00:41"]
[BlackClock "0:00:12"]

1. c4 {[%clk 0:02:56]}  Nf6 {[%clk 0:02:59]} 2. Nc3 {[%clk 0:02:56]}  e6 {[%clk 0:02:57]} 3. a3 {[%clk 0:02:55]}  d5 {[%clk 0:02:56]} 4. d4 {[%clk 0:02:56]}  c6 {[%clk 0:02:53]} 5. e3 {[%clk 0:02:49]}  Bd6 {[%clk 0:02:51]} 6. Nf3 {[%clk 0:02:49]}  O-O {[%clk 0:02:50]} 7. Qc2 {[%clk 0:02:48]}  Nbd7 {[%clk 0:02:49]} 8. Be2 {[%clk 0:02:44]}  b6 {[%clk 0:02:45]} 9. cxd5 {[%clk 0:02:41]}  exd5 {[%clk 0:02:43]} 10. b4 {[%clk 0:02:34]}  Bb7 {[%clk 0:02:42]} 11. Bb2 {[%clk 0:02:34]}  b5 {[%clk 0:02:41]} 12. O-O {[%clk 0:02:24]}  Nb6 {[%clk 0:02:37]} 13. e4 {[%clk 0:02:23]}  dxe4 {[%clk 0:02:31]} 14. Nxe4 {[%clk 0:02:24]}  Nxe4 {[%clk 0:02:21]} 15. Qxe4 {[%clk 0:02:25]}  Re8 {[%clk 0:02:20]} 16. Qc2 {[%clk 0:02:21]}  Nd5 {[%clk 0:02:19]} 17. Ne5 {[%clk 0:02:17]}  Rc8 {[%clk 0:02:10]} 18. Bf3 {[%clk 0:02:05]}  f6 {[%clk 0:02:05]} 19. Nd3 {[%clk 0:02:04]}  Rc7 {[%clk 0:01:52]} 20. Rfe1 {[%clk 0:02:03]}  Rxe1+ {[%clk 0:01:50]} 21. Rxe1 {[%clk 0:02:02]}  Re7 {[%clk 0:01:50]} 22. Rc1 {[%clk 0:01:58]}  a5 {[%clk 0:01:44]} 23. bxa5 {[%clk 0:01:48]}  Qxa5 {[%clk 0:01:36]} 24. Qb3 {[%clk 0:01:47]}  Qa4 {[%clk 0:01:05]} 25. Qxa4 {[%clk 0:01:41]}  bxa4 {[%clk 0:01:06]} 26. g3 {[%clk 0:01:35]}  Kf7 {[%clk 0:00:50]} 27. Rc4 {[%clk 0:01:31]}  Nb6 {[%clk 0:00:44]} 28. Rc2 {[%clk 0:01:24]}  Ba6 {[%clk 0:00:36]} 29. Rc3 {[%clk 0:00:44]}  Nd5 {[%clk 0:00:33]} 30. Rxc6 {[%clk 0:00:44]}  Bxd3 {[%clk 0:00:28]} 31. Bxd5+ {[%clk 0:00:44]}  Kg6 {[%clk 0:00:22]} 32. Rxd6 {[%clk 0:00:44]}  Re1+ {[%clk 0:00:23]} 33. Kg2 {[%clk 0:00:44]}  Rb1 {[%clk 0:00:18]} 34. Rb6 {[%clk 0:00:42]}  h5 {[%clk 0:00:13]} 35. h4 {[%clk 0:00:42]}  Bf1+ {[%clk 0:00:12]} 36. Kf3 {[%clk 0:00:41]} 1-0


[Site "https://www.chess.com"]

[Event "Titled Tuesday Blitz January 03 Early 2023"]
[White "Matinian, Nikita"]
[Black "Ronka, Erik"]
[WhiteFideId "24129100"]
[BlackFideId "505080"]
[WhiteElo "2407"]
[BlackElo "2276"]
[Result "1-0"]
[Round "06"]
[TimeControl "180+2"]
[Date "2023.01.03"]
[WhiteClock "0:00:38"]
[BlackClock "0:00:03"]

1. e4 {[%clk 0:02:57]}  c5 {[%clk 0:03:00]} 2. Nc3 {[%clk 0:02:56]}  b6 {[%clk 0:02:59]} 3. g4 {[%clk 0:02:44]}  Bb7 {[%clk 0:02:56]} 4. Bg2 {[%clk 0:02:45]}  e6 {[%clk 0:02:56]} 5. Nge2 {[%clk 0:02:44]}  Qh4 {[%clk 0:02:37]} 6. Ng3 {[%clk 0:02:25]}  Nf6 {[%clk 0:02:30]} 7. Nb5 {[%clk 0:02:17]}  Na6 {[%clk 0:02:19]} 8. h3 {[%clk 0:02:02]}  d5 {[%clk 0:02:11]} 9. e5 {[%clk 0:02:00]}  Nd7 {[%clk 0:02:09]} 10. d4 {[%clk 0:01:59]}  cxd4 {[%clk 0:02:06]} 11. Qxd4 {[%clk 0:01:56]}  Bc5 {[%clk 0:02:00]} 12. Nd6+ {[%clk 0:01:56]}  Bxd6 {[%clk 0:01:57]} 13. exd6 {[%clk 0:01:57]}  Qf6 {[%clk 0:01:51]} 14. Qxf6 {[%clk 0:01:46]}  Nxf6 {[%clk 0:01:46]} 15. g5 {[%clk 0:01:44]}  Nd7 {[%clk 0:01:41]} 16. Be3 {[%clk 0:01:34]}  Rc8 {[%clk 0:01:17]} 17. c3 {[%clk 0:01:32]}  Nac5 {[%clk 0:01:04]} 18. O-O-O {[%clk 0:01:30]}  Ba6 {[%clk 0:00:53]} 19. f4 {[%clk 0:01:27]}  O-O {[%clk 0:00:48]} 20. f5 {[%clk 0:01:22]}  Ne5 {[%clk 0:00:42]} 21. Bxc5 {[%clk 0:00:58]}  bxc5 {[%clk 0:00:38]} 22. Rhe1 {[%clk 0:00:58]}  Nd3+ {[%clk 0:00:30]} 23. Rxd3 {[%clk 0:00:58]}  Bxd3 {[%clk 0:00:30]} 24. fxe6 {[%clk 0:00:59]}  fxe6 {[%clk 0:00:30]} 25. Rxe6 {[%clk 0:01:00]}  d4 {[%clk 0:00:27]} 26. Bd5 {[%clk 0:00:59]}  Kh8 {[%clk 0:00:24]} 27. d7 {[%clk 0:00:43]}  Rcd8 {[%clk 0:00:22]} 28. Bc6 {[%clk 0:00:44]}  Kg8 {[%clk 0:00:13]} 29. Ne4 {[%clk 0:00:38]}  Bxe4 {[%clk 0:00:12]} 30. Rxe4 {[%clk 0:00:38]}  g6 {[%clk 0:00:04]} 31. cxd4 {[%clk 0:00:38]}  cxd4 {[%clk 0:00:03]} 32. Rxd4 {[%clk 0:00:39]}  Kf7 {[%clk 0:00:03]} 33. Re4 {[%clk 0:00:38]} 1-0


[Site "https://www.chess.com"]

[Event "Titled Tuesday Blitz January 03 Early 2023"]
[White "Slade, Theodore"]
[Black "Rozman, Levy"]
[WhiteFideId "426547"]
[BlackFideId "2039877"]
[WhiteElo "1995"]
[BlackElo "2322"]
[Result "0-1"]
[Round "06"]
[TimeControl "180+2"]
[Date "2023.01.03"]
[WhiteClock "0:01:58"]
[BlackClock "0:02:47"]

1. d4 {[%clk 0:03:00]}  g6 {[%clk 0:02:58]} 2. c4 {[%clk 0:03:00]}  Bg7 {[%clk 0:02:58]} 3. e4 {[%clk 0:03:01]}  Nc6 {[%clk 0:02:56]} 4. Be3 {[%clk 0:02:59]}  e5 {[%clk 0:02:56]} 5. d5 {[%clk 0:02:59]}  Nd4 {[%clk 0:02:56]} 6. Ne2 {[%clk 0:02:57]}  c5 {[%clk 0:02:56]} 7. dxc6 {[%clk 0:02:53]}  dxc6 {[%clk 0:02:56]} 8. Nbc3 {[%clk 0:02:46]}  Ne7 {[%clk 0:02:56]} 9. Qd2 {[%clk 0:02:36]}  Be6 {[%clk 0:02:54]} 10. O-O-O {[%clk 0:02:19]}  c5 {[%clk 0:02:53]} 11. Nd5 {[%clk 0:02:16]}  O-O {[%clk 0:02:48]} 12. Bh6 {[%clk 0:02:06]}  b5 {[%clk 0:02:47]} 13. Qf4 {[%clk 0:01:58]}  exf4 {[%clk 0:02:47]} 0-1


[Site "https://www.chess.com"]

[Event "Titled Tuesday Blitz January 03 Early 2023"]
[White "Patrascu, Catalin-Lucian"]
[Black "Skvortsov, Andrei"]
[WhiteFideId "1229052"]
[BlackFideId "24108600"]
[WhiteElo "2279"]
[BlackElo "2313"]
[Result "1/2-1/2"]
[Round "06"]
[TimeControl "180+2"]
[Date "2023.01.03"]
[WhiteClock "0:00:08"]
[BlackClock "0:00:13"]

1. e4 {[%clk 0:03:00]}  c5 {[%clk 0:02:58]} 2. Nf3 {[%clk 0:03:01]}  d6 {[%clk 0:02:59]} 3. d4 {[%clk 0:03:00]}  Nf6 {[%clk 0:02:59]} 4. Nc3 {[%clk 0:03:00]}  cxd4 {[%clk 0:03:00]} 5. Nxd4 {[%clk 0:03:00]}  g6 {[%clk 0:03:01]} 6. Be3 {[%clk 0:02:58]}  Bg7 {[%clk 0:03:01]} 7. f3 {[%clk 0:02:58]}  O-O {[%clk 0:03:01]} 8. Qd2 {[%clk 0:02:58]}  d5 {[%clk 0:03:02]} 9. e5 {[%clk 0:02:33]}  Ne8 {[%clk 0:03:02]} 10. f4 {[%clk 0:02:33]}  f6 {[%clk 0:03:02]} 11. O-O-O {[%clk 0:02:23]}  fxe5 {[%clk 0:03:02]} 12. fxe5 {[%clk 0:02:24]}  Nc6 {[%clk 0:03:02]} 13. Nf3 {[%clk 0:02:17]}  Bg4 {[%clk 0:03:00]} 14. Nxd5 {[%clk 0:01:53]}  e6 {[%clk 0:02:56]} 15. Nf4 {[%clk 0:01:46]}  Qxd2+ {[%clk 0:02:55]} 16. Rxd2 {[%clk 0:01:45]}  Nxe5 {[%clk 0:02:53]} 17. Nxe5 {[%clk 0:01:42]}  Bxe5 {[%clk 0:02:54]} 18. g3 {[%clk 0:01:32]}  Bf3 {[%clk 0:02:48]} 19. Rg1 {[%clk 0:01:29]}  Ng7 {[%clk 0:02:46]} 20. Bc4 {[%clk 0:01:28]}  Rfe8 {[%clk 0:01:53]} 21. Re1 {[%clk 0:01:25]}  a6 {[%clk 0:01:33]} 22. Bd4 {[%clk 0:01:05]}  Bxf4 {[%clk 0:01:13]} 23. gxf4 {[%clk 0:01:06]}  Bd5 {[%clk 0:01:11]} 24. Bxg7 {[%clk 0:00:56]}  Kxg7 {[%clk 0:01:12]} 25. Bxd5 {[%clk 0:00:54]}  exd5 {[%clk 0:01:13]} 26. Rxe8 {[%clk 0:00:54]}  Rxe8 {[%clk 0:01:13]} 27. Rxd5 {[%clk 0:00:54]}  Re1+ {[%clk 0:01:09]} 28. Rd1 {[%clk 0:00:33]}  Re2 {[%clk 0:01:03]} 29. Rd7+ {[%clk 0:00:32]}  Kh6 {[%clk 0:01:00]} 30. Rxb7 {[%clk 0:00:32]}  Rxh2 {[%clk 0:00:59]} 31. b4 {[%clk 0:00:30]}  Rf2 {[%clk 0:00:52]} 32. Rf7 {[%clk 0:00:26]}  Re2 {[%clk 0:00:47]} 33. a4 {[%clk 0:00:20]}  Re4 {[%clk 0:00:43]} 34. c3 {[%clk 0:00:20]}  a5 {[%clk 0:00:41]} 35. Kc2 {[%clk 0:00:12]}  g5 {[%clk 0:00:31]} 36. fxg5+ {[%clk 0:00:11]}  Kg6 {[%clk 0:00:32]} 37. Rb7 {[%clk 0:00:10]}  axb4 {[%clk 0:00:16]} 38. Rxb4 {[%clk 0:00:10]}  Re2+ {[%clk 0:00:13]} 39. Kd3 {[%clk 0:00:09]}  Ra2 {[%clk 0:00:13]} 40. Rg4 {[%clk 0:00:09]}  Kf5 {[%clk 0:00:14]} 41. Rg1 {[%clk 0:00:04]}  Rxa4 {[%clk 0:00:13]} 42. c4 {[%clk 0:00:04]}  Ke5 {[%clk 0:00:12]} 43. Re1+ {[%clk 0:00:04]}  Kf5 {[%clk 0:00:12]} 44. Rg1 {[%clk 0:00:02]}  Ke5 {[%clk 0:00:12]} 45. Kc3 {[%clk 0:00:02]}  Kd6 {[%clk 0:00:13]} 46. Kd4 {[%clk 0:00:02]}  Ra2 {[%clk 0:00:13]} 47. g6 {[%clk 0:00:02]}  hxg6 {[%clk 0:00:11]} 48. Rxg6+ {[%clk 0:00:03]}  Kc7 {[%clk 0:00:12]} 49. Kc5 {[%clk 0:00:03]}  Ra5+ {[%clk 0:00:13]} 50. Kb4 {[%clk 0:00:03]}  Ra1 {[%clk 0:00:14]} 51. Kb5 {[%clk 0:00:04]}  Ra2 {[%clk 0:00:11]} 52. Rg7+ {[%clk 0:00:03]}  Kc8 {[%clk 0:00:11]} 53. Kc6 {[%clk 0:00:04]}  Ra6+ {[%clk 0:00:10]} 54. Kb5 {[%clk 0:00:04]}  Rf6 {[%clk 0:00:10]} 55. Rh7 {[%clk 0:00:04]}  Rg6 {[%clk 0:00:10]} 56. Rh5 {[%clk 0:00:04]}  Rf6 {[%clk 0:00:10]} 57. Rc5+ {[%clk 0:00:05]}  Kb7 {[%clk 0:00:11]} 58. Rd5 {[%clk 0:00:05]}  Kc7 {[%clk 0:00:10]} 59. Kc5 {[%clk 0:00:05]}  Rg6 {[%clk 0:00:11]} 60. Rh5 {[%clk 0:00:06]}  Rc6+ {[%clk 0:00:11]} 61. Kd5 {[%clk 0:00:06]}  Rd6+ {[%clk 0:00:11]} 62. Ke4 {[%clk 0:00:06]}  Rg6 {[%clk 0:00:12]} 63. Kd4 {[%clk 0:00:06]}  Kc6 {[%clk 0:00:12]} 64. Rf5 {[%clk 0:00:06]}  Rg4+ {[%clk 0:00:11]} 65. Kc3 {[%clk 0:00:07]}  Rg1 {[%clk 0:00:12]} 66. Rf3 {[%clk 0:00:07]}  Kc5 {[%clk 0:00:12]} 67. Rf5+ {[%clk 0:00:07]}  Kc6 {[%clk 0:00:13]} 68. Rf4 {[%clk 0:00:08]}  Kc5 {[%clk 0:00:13]} 69. Rf5+ {[%clk 0:00:08]}  Kc6 {[%clk 0:00:13]} 1/2-1/2


[Site "https://www.chess.com"]

[Event "Titled Tuesday Blitz January 03 Early 2023"]
[White "Cella, Glaucio Dalla Cortt"]
[Black "Orozbaev, Eldiar"]
[WhiteFideId "2119455"]
[BlackFideId "13802240"]
[WhiteElo "1894"]
[BlackElo "2235"]
[Result "0-1"]
[Round "06"]
[TimeControl "180+2"]
[Date "2023.01.03"]
[WhiteClock "0:00:04"]
[BlackClock "0:00:16"]

1. e4 {[%clk 0:02:57]}  e6 {[%clk 0:02:55]} 2. d4 {[%clk 0:02:57]}  d5 {[%clk 0:02:54]} 3. Nd2 {[%clk 0:02:58]}  c5 {[%clk 0:02:53]} 4. Ngf3 {[%clk 0:02:58]}  Nc6 {[%clk 0:02:53]} 5. exd5 {[%clk 0:02:58]}  exd5 {[%clk 0:02:54]} 6. Bb5 {[%clk 0:02:57]}  Bd6 {[%clk 0:02:54]} 7. dxc5 {[%clk 0:02:56]}  Bxc5 {[%clk 0:02:55]} 8. O-O {[%clk 0:02:57]}  Ne7 {[%clk 0:02:55]} 9. Nb3 {[%clk 0:02:57]}  Bd6 {[%clk 0:02:55]} 10. Bd3 {[%clk 0:02:56]}  O-O {[%clk 0:02:53]} 11. h3 {[%clk 0:02:54]}  Qc7 {[%clk 0:02:50]} 12. c3 {[%clk 0:02:53]}  h6 {[%clk 0:02:40]} 13. Nbd4 {[%clk 0:02:52]}  a6 {[%clk 0:02:38]} 14. Bc2 {[%clk 0:02:43]}  Ne5 {[%clk 0:02:28]} 15. Nxe5 {[%clk 0:02:35]}  Bxe5 {[%clk 0:02:29]} 16. Qd3 {[%clk 0:02:36]}  Ng6 {[%clk 0:02:24]} 17. Nf3 {[%clk 0:01:15]}  Rd8 {[%clk 0:02:16]} 18. Nxe5 {[%clk 0:01:10]}  Qxe5 {[%clk 0:02:17]} 19. Be3 {[%clk 0:01:11]}  Be6 {[%clk 0:02:11]} 20. Rae1 {[%clk 0:01:11]}  Qh5 {[%clk 0:01:44]} 21. f4 {[%clk 0:01:05]}  f5 {[%clk 0:01:29]} 22. Bb6 {[%clk 0:01:00]}  Rd6 {[%clk 0:01:24]} 23. Bc5 {[%clk 0:01:01]}  Rc6 {[%clk 0:01:24]} 24. Rxe6 {[%clk 0:00:47]}  Rxe6 {[%clk 0:01:25]} 25. Qxd5 {[%clk 0:00:46]}  Re8 {[%clk 0:00:43]} 26. Bb3 {[%clk 0:00:46]}  Kh7 {[%clk 0:00:40]} 27. Qxb7 {[%clk 0:00:24]}  Re1 {[%clk 0:00:35]} 28. Bd4 {[%clk 0:00:15]}  Rxf1+ {[%clk 0:00:27]} 29. Kxf1 {[%clk 0:00:16]}  Qe2+ {[%clk 0:00:27]} 30. Kg1 {[%clk 0:00:16]}  Qe7 {[%clk 0:00:23]} 31. Qxe7 {[%clk 0:00:14]}  Rxe7 {[%clk 0:00:24]} 32. g3 {[%clk 0:00:13]}  h5 {[%clk 0:00:21]} 33. Kf2 {[%clk 0:00:12]}  h4 {[%clk 0:00:21]} 34. Bc2 {[%clk 0:00:12]}  hxg3+ {[%clk 0:00:18]} 35. Kxg3 {[%clk 0:00:12]}  Re2 {[%clk 0:00:19]} 36. Bxf5 {[%clk 0:00:12]}  Rxb2 {[%clk 0:00:19]} 37. Bxg6+ {[%clk 0:00:08]}  Kxg6 {[%clk 0:00:19]} 38. a4 {[%clk 0:00:08]}  Ra2 {[%clk 0:00:19]} 39. Kg4 {[%clk 0:00:08]}  Rxa4 {[%clk 0:00:19]} 40. f5+ {[%clk 0:00:09]}  Kf7 {[%clk 0:00:19]} 41. Kg5 {[%clk 0:00:09]}  Rc4 {[%clk 0:00:18]} 42. h4 {[%clk 0:00:07]}  a5 {[%clk 0:00:18]} 43. f6 {[%clk 0:00:07]}  gxf6+ {[%clk 0:00:18]} 44. Bxf6 {[%clk 0:00:08]}  Rc5+ {[%clk 0:00:19]} 45. Kh6 {[%clk 0:00:02]}  Kxf6 {[%clk 0:00:20]} 46. h5 {[%clk 0:00:03]}  Rxc3 {[%clk 0:00:19]} 47. Kh7 {[%clk 0:00:03]}  Rc5 {[%clk 0:00:15]} 48. h6 {[%clk 0:00:04]}  Rh5 {[%clk 0:00:16]} 49. Kg8 {[%clk 0:00:04]}  Rxh6 {[%clk 0:00:16]} 0-1


[Site "https://www.chess.com"]

[Event "Titled Tuesday Blitz January 03 Early 2023"]
[White "Girsh, Daniel"]
[Black "Abdilkhair, Abilmansur"]
[WhiteFideId "30949190"]
[BlackFideId "13716417"]
[WhiteElo "2123"]
[BlackElo "2268"]
[Result "0-1"]
[Round "06"]
[TimeControl "180+2"]
[Date "2023.01.03"]
[WhiteClock "0:00:19"]
[BlackClock "0:00:14"]

1. e4 {[%clk 0:03:00]}  e5 {[%clk 0:02:59]} 2. Nf3 {[%clk 0:03:01]}  Nc6 {[%clk 0:02:59]} 3. Bb5 {[%clk 0:03:01]}  a6 {[%clk 0:02:59]} 4. Ba4 {[%clk 0:03:02]}  Nf6 {[%clk 0:02:59]} 5. O-O {[%clk 0:03:03]}  b5 {[%clk 0:02:59]} 6. Bb3 {[%clk 0:03:02]}  Be7 {[%clk 0:03:00]} 7. Re1 {[%clk 0:03:02]}  d6 {[%clk 0:02:59]} 8. c3 {[%clk 0:03:01]}  O-O {[%clk 0:02:59]} 9. h3 {[%clk 0:03:02]}  Na5 {[%clk 0:02:57]} 10. Bc2 {[%clk 0:03:02]}  c5 {[%clk 0:02:58]} 11. d4 {[%clk 0:03:02]}  Nc6 {[%clk 0:02:56]} 12. d5 {[%clk 0:02:47]}  Nb8 {[%clk 0:02:50]} 13. a4 {[%clk 0:02:47]}  b4 {[%clk 0:02:38]} 14. c4 {[%clk 0:02:41]}  Ne8 {[%clk 0:02:30]} 15. Nbd2 {[%clk 0:02:34]}  f5 {[%clk 0:02:30]} 16. exf5 {[%clk 0:02:33]}  Bxf5 {[%clk 0:02:31]} 17. Nf1 {[%clk 0:02:26]}  Nd7 {[%clk 0:02:23]} 18. Ng3 {[%clk 0:02:25]}  Bxc2 {[%clk 0:02:17]} 19. Qxc2 {[%clk 0:02:26]}  g6 {[%clk 0:02:02]} 20. Bh6 {[%clk 0:02:23]}  Rf7 {[%clk 0:02:02]} 21. Ne4 {[%clk 0:02:20]}  Nf8 {[%clk 0:01:41]} 22. Neg5 {[%clk 0:02:17]}  Rf5 {[%clk 0:01:41]} 23. h4 {[%clk 0:02:06]}  Ng7 {[%clk 0:01:34]} 24. Rad1 {[%clk 0:01:56]}  Qd7 {[%clk 0:01:28]} 25. Nd2 {[%clk 0:01:41]}  Bxg5 {[%clk 0:01:17]} 26. Bxg5 {[%clk 0:01:39]}  Nh5 {[%clk 0:01:14]} 27. Ne4 {[%clk 0:01:36]}  Kg7 {[%clk 0:01:02]} 28. Re3 {[%clk 0:01:29]}  h6 {[%clk 0:01:01]} 29. g4 {[%clk 0:01:27]}  Rxg5 {[%clk 0:00:44]} 30. hxg5 {[%clk 0:01:26]}  Qxg4+ {[%clk 0:00:44]} 31. Rg3 {[%clk 0:01:25]}  Nxg3 {[%clk 0:00:43]} 32. gxh6+ {[%clk 0:01:25]}  Kxh6 {[%clk 0:00:38]} 33. Nxg3 {[%clk 0:01:19]}  Nh7 {[%clk 0:00:38]} 34. Kg2 {[%clk 0:01:15]}  Rf8 {[%clk 0:00:33]} 35. Rh1+ {[%clk 0:01:09]}  Kg7 {[%clk 0:00:32]} 36. Qe4 {[%clk 0:01:09]}  Rf4 {[%clk 0:00:29]} 37. Qe3 {[%clk 0:01:04]}  Ng5 {[%clk 0:00:22]} 38. b3 {[%clk 0:00:56]}  Rf3 {[%clk 0:00:20]} 39. Qd2 {[%clk 0:00:31]}  Rxb3 {[%clk 0:00:20]} 40. Re1 {[%clk 0:00:21]}  Rc3 {[%clk 0:00:12]} 41. Qe2 {[%clk 0:00:17]}  Qxe2 {[%clk 0:00:11]} 42. Rxe2 {[%clk 0:00:18]}  Rxc4 {[%clk 0:00:12]} 43. f3 {[%clk 0:00:15]}  Rc3 {[%clk 0:00:10]} 44. Rf2 {[%clk 0:00:14]}  b3 {[%clk 0:00:10]} 45. f4 {[%clk 0:00:14]}  Rxg3+ {[%clk 0:00:09]} 46. Kxg3 {[%clk 0:00:14]}  Ne4+ {[%clk 0:00:10]} 47. Kf3 {[%clk 0:00:14]}  Nxf2 {[%clk 0:00:11]} 48. fxe5 {[%clk 0:00:15]}  b2 {[%clk 0:00:12]} 49. exd6 {[%clk 0:00:14]}  b1=Q {[%clk 0:00:12]} 50. d7 {[%clk 0:00:15]}  Qf5+ {[%clk 0:00:12]} 51. Ke2 {[%clk 0:00:15]}  Qxd7 {[%clk 0:00:12]} 52. Kxf2 {[%clk 0:00:16]}  Qxd5 {[%clk 0:00:12]} 53. Kg3 {[%clk 0:00:17]}  Qe4 {[%clk 0:00:12]} 54. a5 {[%clk 0:00:17]}  Kf7 {[%clk 0:00:13]} 55. Kh3 {[%clk 0:00:17]}  Kf6 {[%clk 0:00:14]} 56. Kh2 {[%clk 0:00:17]}  Kf5 {[%clk 0:00:14]} 57. Kg1 {[%clk 0:00:18]}  Qc2 {[%clk 0:00:14]} 58. Kh1 {[%clk 0:00:18]}  Kf4 {[%clk 0:00:15]} 59. Kg1 {[%clk 0:00:18]}  Kg3 {[%clk 0:00:16]} 60. Kh1 {[%clk 0:00:19]}  Qb1# {[%clk 0:00:14]} 0-1


[Site "https://www.chess.com"]

[Event "Titled Tuesday Blitz January 03 Early 2023"]
[White "Reprintsev, Alexander"]
[Black "Maksimovic, Bojan"]
[WhiteFideId "14100541"]
[BlackFideId "14408120"]
[WhiteElo "2253"]
[BlackElo "2486"]
[Result "1-0"]
[Round "06"]
[TimeControl "180+2"]
[Date "2023.01.03"]
[WhiteClock "0:00:09"]
[BlackClock "0:00:42"]

1. e4 {[%clk 0:02:50]}  g6 {[%clk 0:02:58]} 2. d4 {[%clk 0:02:49]}  Bg7 {[%clk 0:02:59]} 3. Nc3 {[%clk 0:02:49]}  d6 {[%clk 0:02:59]} 4. h4 {[%clk 0:02:49]}  h5 {[%clk 0:02:58]} 5. Nf3 {[%clk 0:02:48]}  a6 {[%clk 0:02:55]} 6. Ng5 {[%clk 0:02:46]}  b5 {[%clk 0:02:54]} 7. f3 {[%clk 0:02:46]}  Nf6 {[%clk 0:02:46]} 8. Be3 {[%clk 0:02:45]}  Nbd7 {[%clk 0:02:44]} 9. a4 {[%clk 0:02:29]}  b4 {[%clk 0:02:41]} 10. Ne2 {[%clk 0:02:29]}  Bb7 {[%clk 0:02:37]} 11. Nf4 {[%clk 0:02:16]}  e6 {[%clk 0:02:14]} 12. Nfxe6 {[%clk 0:02:03]}  fxe6 {[%clk 0:02:13]} 13. Nxe6 {[%clk 0:02:04]}  Qe7 {[%clk 0:02:14]} 14. Nxc7+ {[%clk 0:02:04]}  Kf7 {[%clk 0:02:14]} 15. Nxa8 {[%clk 0:01:45]}  Rxa8 {[%clk 0:02:15]} 16. Qd2 {[%clk 0:01:39]}  Bxe4 {[%clk 0:01:49]} 17. fxe4 {[%clk 0:01:36]}  Nxe4 {[%clk 0:01:50]} 18. Qd3 {[%clk 0:01:26]}  Ng3 {[%clk 0:01:48]} 19. Rh3 {[%clk 0:01:24]}  Nf5 {[%clk 0:01:48]} 20. Be2 {[%clk 0:01:14]}  Re8 {[%clk 0:01:42]} 21. Bg5 {[%clk 0:01:12]}  Bf6 {[%clk 0:01:27]} 22. Kf1 {[%clk 0:00:29]}  Bxg5 {[%clk 0:01:26]} 23. hxg5 {[%clk 0:00:29]}  Qxg5 {[%clk 0:01:27]} 24. Kg1 {[%clk 0:00:22]}  Nf6 {[%clk 0:01:16]} 25. Rf1 {[%clk 0:00:20]}  a5 {[%clk 0:01:15]} 26. Qc4+ {[%clk 0:00:17]}  Kg7 {[%clk 0:01:15]} 27. Bd3 {[%clk 0:00:18]}  Ne3 {[%clk 0:01:07]} 28. Qc7+ {[%clk 0:00:14]}  Kh6 {[%clk 0:01:07]} 29. Rf2 {[%clk 0:00:13]}  Nfg4 {[%clk 0:01:01]} 30. Re2 {[%clk 0:00:12]}  Nxg2 {[%clk 0:00:56]} 31. Rxe8 {[%clk 0:00:09]}  Qf4 {[%clk 0:00:41]} 32. Rh8+ {[%clk 0:00:07]}  Kg5 {[%clk 0:00:42]} 33. Qe7+ {[%clk 0:00:07]}  Nf6 {[%clk 0:00:42]} 34. Kxg2 {[%clk 0:00:07]}  Qd2+ {[%clk 0:00:37]} 35. Qe2 {[%clk 0:00:06]}  Qf4 {[%clk 0:00:37]} 36. Rg3+ {[%clk 0:00:06]}  Ng4 {[%clk 0:00:37]} 37. Rxg4+ {[%clk 0:00:06]}  hxg4 {[%clk 0:00:38]} 38. Qe7+ {[%clk 0:00:05]}  Qf6 {[%clk 0:00:37]} 39. Qxf6+ {[%clk 0:00:06]}  Kxf6 {[%clk 0:00:37]} 40. Ra8 {[%clk 0:00:06]}  Ke6 {[%clk 0:00:38]} 41. Rxa5 {[%clk 0:00:06]}  g5 {[%clk 0:00:39]} 42. Rb5 {[%clk 0:00:07]}  d5 {[%clk 0:00:40]} 43. Rxb4 {[%clk 0:00:08]}  Kd6 {[%clk 0:00:40]} 44. Rb6+ {[%clk 0:00:08]}  Kc7 {[%clk 0:00:41]} 45. Rg6 {[%clk 0:00:09]}  g3 {[%clk 0:00:42]} 1-0


[Site "https://www.chess.com"]